bitfinex/quotes_SOLUSD_20241107
["timestamp","ask_amount","ask_price","bid_price","bid_amount"]
[1730978584874,7.93640689,187.75,187.7,23.776884]
[1730978585299,7.93640689,187.75,187.69,23.776884]
[1730978585676,7.93640689,187.75,187.69,7.93640689]
[1730978585994,7.93640689,187.75,187.7,23.776884]
[1730978586202,7.93640689,187.76,187.7,31.71329089]
[1730978586497,7.93640689,187.75,187.7,23.776884]
[1730978586684,7.93640689,187.74,187.7,23.776884]
[1730978586880,7.93640689,187.73,187.68,23.776884]
[1730978590186,7.93640689,187.73,187.67,21.3147]
[1730978590400,7.93640689,187.73,187.67,29.25110689]
[1730978590981,7.93640689,187.73,187.67,21.3147]
[1730978591181,7.93640689,187.74,187.68,7.93640689]
[1730978591599,7.93640689,187.75,187.69,7.93640689]
[1730978595284,0.12549,187.79,187.69,7.93640689]
[1730978595489,7.93640689,187.76,187.7,7.93640689]
[1730978595785,7.93640689,187.75,187.68,23.776884]
[1730978595996,7.93640689,187.75,187.69,7.93640689]
[1730978596980,158.4,187.82,187.7,7.93640689]
[1730978597185,7.93640689,187.76,187.7,7.93640689]
[1730978597903,7.93640689,187.76,187.69,7.93640689]
[1730978601109,7.93640689,187.77,187.71,23.776884]
[1730978603784,97.62882081,187.84,187.72,7.93640689]
[1730978603985,97.62882081,187.84,187.74,7.93640689]
[1730978604301,7.93640689,187.79,187.73,30.15350689]
[1730978604701,7.93640689,187.79,187.73,22.2171]
[1730978605790,7.93640689,187.78,187.73,22.2171]
[1730978605984,7.93640689,187.79,187.73,22.2171]
[1730978609603,7.93640689,187.79,187.73,30.15350689]
[1730978610915,7.93640689,187.8,187.73,30.15350689]
[1730978612004,7.93640689,187.79,187.73,30.15350689]
[1730978613709,7.93640689,187.8,187.74,23.776884]
[1730978614805,7.93640689,187.83,187.76,31.71329089]
[1730978615004,5.50710123,187.87,187.79,7.93640689]
[1730978615197,7.93640689,187.84,187.78,31.71329089]
[1730978615406,7.93640689,187.84,187.78,23.776884]
[1730978615713,5.50710123,187.87,187.78,23.776884]
[1730978615714,7.93640689,187.83,187.78,23.776884]
[1730978619132,5.50710123,187.87,187.78,23.776884]
[1730978619415,5.50710123,187.87,187.78,31.71329089]
[1730978619626,7.93640689,187.84,187.78,31.71329089]
[1730978620087,7.93640689,187.83,187.78,23.776884]
[1730978624114,5.50710123,187.87,187.78,23.776884]
[1730978624306,7.93640689,187.84,187.78,23.776884]
[1730978625614,5.50710123,187.87,187.78,23.776884]
[1730978625816,7.93640689,187.83,187.78,23.776884]
[1730978627197,7.93640689,187.83,187.78,28.7544725]
[1730978627401,7.93640689,187.83,187.77,23.776884]
[1730978627603,7.93640689,187.83,187.79,23.776884]
[1730978628120,7.93640689,187.83,187.78,23.776884]
[1730978628309,5.50710123,187.87,187.78,28.74804945]
[1730978628512,7.93640689,187.83,187.78,28.74804945]
[1730978629295,7.93640689,187.82,187.77,23.776884]
[1730978629500,7.93640689,187.82,187.79,23.776884]
[1730978629719,7.93640689,187.82,187.77,23.776884]
[1730978629925,7.93640689,187.82,187.79,23.776884]
[1730978630140,7.93640689,187.82,187.77,23.776884]
[1730978630329,7.93640689,187.82,187.78,4.97037622]
[1730978630504,7.93640689,187.82,187.77,23.776884]
[1730978630704,7.93640689,187.83,187.79,23.776884]
[1730978631217,7.93640689,187.83,187.78,23.776884]
[1730978633524,5.50710123,187.87,187.78,23.776884]
[1730978633712,7.93640689,187.84,187.8,23.776884]
[1730978636331,7.93640689,187.83,187.8,23.776884]
[1730978640034,7.93640689,187.82,187.79,22.2475]
[1730978643533,7.93640689,187.81,187.79,22.2475]
[1730978643729,7.93640689,187.81,187.75,22.0761]
[1730978644042,0.12549,187.88,187.75,22.0761]
[1730978644211,7.93640689,187.81,187.75,22.0761]
[1730978645243,7.93640689,187.81,187.76,23.776884]
[1730978645719,0.12549,187.88,187.76,23.776884]
[1730978645921,5.51370716,187.89,187.82,23.776884]
[1730978646111,11.91587581,187.88,187.82,23.776884]
[1730978646316,5.51370716,187.89,187.82,23.776884]
[1730978646545,7.93640689,187.87,187.82,23.776884]
[1730978646831,5.51370716,187.89,187.82,23.776884]
[1730978646832,7.93640689,187.85,187.82,23.776884]
[1730978647725,7.93640689,187.86,187.82,23.776884]
[1730978649325,7.93640689,187.85,187.82,23.776884]
[1730978649914,5.51370716,187.89,187.82,23.776884]
[1730978650115,7.93640689,187.86,187.82,23.776884]
[1730978651038,7.93640689,187.86,187.81,22.503]
[1730978651215,7.93640689,187.85,187.81,22.503]
[1730978651618,7.93640689,187.84,187.81,22.503]
[1730978652141,7.93640689,187.83,187.77,7.93640689]
[1730978652334,7.93640689,187.83,187.77,23.776884]
[1730978653319,7.93640689,187.83,187.76,30.34010689]
[1730978654117,7.93640689,187.82,187.76,30.34010689]
[1730978654525,7.93640689,187.82,187.77,23.776884]
[1730978657830,7.93640689,187.83,187.77,31.71329089]
[1730978658240,7.93640689,187.84,187.77,31.71329089]
[1730978660652,7.93640689,187.84,187.78,7.93640689]
[1730978660840,7.93640689,187.85,187.79,23.776884]
[1730978661047,7.93640689,187.85,187.79,31.71329089]
[1730978661232,3.99051039,187.84,187.79,31.71329089]
[1730978661433,7.93640689,187.85,187.79,31.71329089]
[1730978663038,7.93640689,187.85,187.79,23.776884]
[1730978663352,11.92691539,187.84,187.79,23.776884]
[1730978663550,7.93640689,187.84,187.79,23.776884]
[1730978663850,7.93640689,187.84,187.78,23.776884]
[1730978667178,7.93640689,187.84,187.78,31.71329089]
[1730978668074,7.93640689,187.82,187.77,23.776884]
[1730978673878,7.93640689,187.81,187.77,23.776884]
[1730978674952,7.93640689,187.81,187.74,21.4379]
[1730978675190,7.93640689,187.81,187.74,29.37430689]
[1730978675664,7.93640689,187.8,187.74,21.4379]
[1730978675864,7.93640689,187.81,187.74,29.37430689]
[1730978676267,7.93640689,187.81,187.75,23.776884]
[1730978676765,7.93640689,187.81,187.75,31.71329089]
[1730978679371,7.93640689,187.81,187.75,31.71329089]
[1730978680685,158.4,187.88,187.75,31.71329089]
[1730978680888,7.93640689,187.82,187.75,31.71329089]
[1730978681093,7.93640689,187.83,187.77,23.776884]
[1730978681386,7.93640689,187.82,187.77,23.776884]
[1730978681565,0.12549,187.88,187.76,23.776884]
[1730978681765,7.93640689,187.82,187.76,31.71329089]
[1730978682384,5.51370716,187.89,187.76,31.71329089]
[1730978682566,7.93640689,187.82,187.76,31.71329089]
[1730978683781,7.93640689,187.81,187.75,31.71329089]
[1730978685088,7.93640689,187.8,187.75,23.776884]
[1730978685269,7.93640689,187.79,187.75,23.776884]
[1730978685468,7.93640689,187.78,187.75,23.776884]
[1730978686379,7.93640689,187.77,187.74,21.4379]
[1730978686779,7.93640689,187.77,187.71,23.776884]
[1730978686979,7.93640689,187.76,187.7,29.49280689]
[1730978687496,7.93640689,187.77,187.71,7.93640689]
[1730978688166,7.93640689,187.77,187.72,23.776884]
[1730978688367,7.93640689,187.77,187.71,31.71329089]
[1730978689501,7.93640689,187.77,187.71,23.776884]
[1730978689704,7.93640689,187.77,187.71,31.71329089]
[1730978690299,7.93640689,187.76,187.71,23.776884]
[1730978690475,7.93640689,187.77,187.71,31.71329089]
[1730978691311,7.93640689,187.77,187.72,4.98789547]
[1730978691484,7.93640689,187.77,187.71,31.71329089]
[1730978695311,7.93640689,187.77,187.72,7.93640689]
[1730978695794,7.93640689,187.77,187.73,23.776884]
[1730978696612,7.93640689,187.78,187.73,23.776884]
[1730978698205,7.93640689,187.77,187.73,23.776884]
[1730978701718,7.93640689,187.74,187.67,5.50099372]
[1730978702018,7.93640689,187.72,187.66,30.70720689]
[1730978702795,7.93640689,187.73,187.67,7.93640689]
[1730978703015,7.93640689,187.73,187.68,23.776884]
[1730978703219,7.93640689,187.73,187.67,7.93640689]
[1730978703933,7.93640689,187.73,187.66,22.7708]
[1730978703934,0.12549,187.79,187.69,7.93640689]
[1730978704215,7.93640689,187.76,187.7,7.93640689]
[1730978704413,7.93640689,187.76,187.71,7.93640689]
[1730978704919,7.93640689,187.75,187.7,7.93640689]
[1730978705124,7.93640689,187.75,187.71,23.776884]
[1730978705909,7.93640689,187.76,187.71,23.776884]
[1730978708223,0.12549,187.82,187.71,23.776884]
[1730978708405,7.93640689,187.76,187.71,23.776884]
[1730978708919,7.93640689,187.73,187.71,23.776884]
[1730978709100,7.93640689,187.72,187.67,23.776884]
[1730978709307,7.93640689,187.71,187.67,23.776884]
[1730978710530,7.93640689,187.7,187.67,23.776884]
[1730978712028,7.93640689,187.69,187.67,23.776884]
[1730978712397,7.93640689,187.69,187.66,22.7708]
[1730978712598,7.93640689,187.7,187.66,22.7708]
[1730978714223,7.93640689,187.69,187.66,22.7708]
[1730978715724,7.93640689,187.7,187.66,22.7708]
[1730978720734,7.93640689,187.71,187.66,22.7708]
[1730978721515,7.93640689,187.7,187.66,22.7708]
[1730978721921,0.12549,187.77,187.66,22.7708]
[1730978722126,7.93640689,187.71,187.66,22.7708]
[1730978722339,7.93640689,187.7,187.66,22.7708]
[1730978722749,7.93640689,187.71,187.66,22.7708]
[1730978729522,7.93640689,187.72,187.66,22.7708]
[1730978732918,7.93640689,187.71,187.66,22.7708]
[1730978737118,158.4,187.78,187.69,7.93640689]
[1730978737445,7.93640689,187.75,187.69,23.776884]
[1730978737639,7.93640689,187.74,187.69,23.776884]
[1730978738837,0.12549,187.81,187.69,23.776884]
[1730978739036,7.93640689,187.74,187.69,23.776884]
[1730978739236,0.12549,187.79,187.69,23.776884]
[1730978739546,7.93640689,187.75,187.69,31.71329089]
[1730978739930,7.93640689,187.75,187.69,23.776884]
[1730978740323,7.93640689,187.75,187.69,31.71329089]
[1730978740550,7.89809261,187.75,187.69,31.71329089]
[1730978741927,7.89809261,187.75,187.69,23.776884]
[1730978743854,7.89809261,187.75,187.69,31.71329089]
[1730978748757,31.74562756,187.8,187.68,23.776884]
[1730978748758,7.93640689,187.73,187.68,23.776884]
[1730978750154,7.93640689,187.74,187.68,23.776884]
[1730978751259,7.93640689,187.75,187.68,7.93640689]
[1730978751450,7.93640689,187.75,187.69,4.96749448]
[1730978751765,7.93640689,187.75,187.7,4.96749448]
[1730978751929,7.93640689,187.75,187.71,4.96749448]
[1730978752131,7.93640689,187.75,187.72,4.96749448]
[1730978752453,7.93640689,187.75,187.69,23.776884]
[1730978752633,7.93640689,187.75,187.7,4.96797104]
[1730978752952,7.93640689,187.75,187.71,4.96797104]
[1730978753262,7.93640689,187.75,187.72,4.96797104]
[1730978753469,7.93640689,187.75,187.69,23.776884]
[1730978755363,7.93640689,187.75,187.69,31.71329089]
[1730978755658,7.93640689,187.76,187.69,31.71329089]
[1730978761268,7.93640689,187.79,187.72,7.93640689]
[1730978761449,7.93640689,187.79,187.73,7.93640689]
[1730978761649,7.93640689,187.79,187.72,29.84050689]
[1730978761849,7.93640689,187.78,187.72,29.84050689]
[1730978762357,7.93640689,187.78,187.72,21.9041]
[1730978763068,0.12549,187.81,187.72,21.9041]
[1730978763250,7.93640689,187.74,187.69,23.776884]
[1730978763449,7.93640689,187.74,187.68,22.2194]
[1730978763665,7.93640689,187.74,187.68,30.15580689]
[1730978766474,7.93640689,187.73,187.68,22.2194]
[1730978766685,7.93640689,187.74,187.68,30.15580689]
[1730978766849,7.93640689,187.75,187.68,30.15580689]
[1730978768762,7.93640689,187.74,187.68,30.15580689]
[1730978770170,7.93640689,187.75,187.68,30.15580689]
[1730978770355,7.93640689,187.74,187.68,22.2194]
[1730978770667,7.93640689,187.74,187.68,30.15580689]
[1730978771161,0.12549,187.79,187.68,30.15580689]
[1730978771373,7.93640689,187.75,187.68,30.15580689]
[1730978771748,7.93640689,187.74,187.68,30.15580689]
[1730978772671,7.93640689,187.72,187.61,5.48865343]
[1730978772846,7.93640689,187.72,187.65,7.93640689]
[1730978773054,7.93640689,187.72,187.66,7.93640689]
[1730978774865,7.93640689,187.71,187.65,7.93640689]
[1730978777870,7.93640689,187.69,187.63,31.71329089]
[1730978779069,7.93640689,187.69,187.63,23.776884]
[1730978779260,7.93640689,187.69,187.63,31.71329089]
[1730978781872,7.93640689,187.71,187.65,7.93640689]
[1730978782079,7.93640689,187.72,187.66,7.93640689]
[1730978782789,7.93640689,187.73,187.67,7.93640689]
[1730978785051,7.93640689,187.74,187.67,7.93640689]
[1730978785976,7.93640689,187.75,187.69,7.93640689]
[1730978786689,5.48195686,187.78,187.68,21.1219]
[1730978786690,7.93640689,187.74,187.68,21.1219]
[1730978787476,7.93640689,187.73,187.68,21.1219]
[1730978787688,7.93640689,187.72,187.68,21.1219]
[1730978791091,7.93640689,187.73,187.68,21.1219]
[1730978791385,7.93640689,187.75,187.68,29.05830689]
[1730978791590,7.93640689,187.75,187.69,7.93640689]
[1730978792095,7.93640689,187.75,187.68,29.05830689]
[1730978792285,7.93640689,187.75,187.68,21.1219]
[1730978792466,7.93640689,187.74,187.68,21.1219]
[1730978796594,7.93640689,187.73,187.68,21.1219]
[1730978797872,7.93640689,187.74,187.68,21.1219]
[1730978800672,7.93640689,187.75,187.69,7.93640689]
[1730978801591,7.93640689,187.76,187.69,7.93640689]
[1730978804691,7.93640689,187.76,187.7,23.776884]
[1730978805005,7.93640689,187.77,187.71,7.93640689]
[1730978805175,7.93640689,187.76,187.7,7.93640689]
[1730978808205,5.48195686,187.78,187.7,7.93640689]
[1730978808380,7.93640689,187.76,187.7,7.93640689]
[1730978809083,7.93640689,187.75,187.69,31.71329089]
[1730978812099,7.93640689,187.73,187.68,21.1219]
[1730978813696,7.93640689,187.72,187.69,4.99081329]
[1730978814009,7.93640689,187.72,187.68,21.1219]
[1730978814010,7.93640689,187.72,187.7,4.99081329]
[1730978814216,7.93640689,187.72,187.71,4.99081329]
[1730978817014,7.93640689,187.73,187.66,7.93640689]
[1730978817193,7.93640689,187.73,187.71,4.99164123]
[1730978817392,7.93640689,187.73,187.67,7.93640689]
[1730978818110,7.93640689,187.73,187.66,7.93640689]
[1730978819301,7.93640689,187.72,187.66,7.93640689]
[1730978820121,0.12549,187.77,187.66,7.93640689]
[1730978820329,7.93640689,187.73,187.66,7.93640689]
[1730978821516,7.93640689,187.72,187.64,23.776884]
[1730978821719,7.93640689,187.72,187.66,7.93640689]
[1730978824320,7.93640689,187.72,187.64,23.776884]
[1730978824513,7.93640689,187.72,187.66,7.93640689]
[1730978824820,7.93640689,187.72,187.64,23.776884]
[1730978825024,7.93640689,187.72,187.66,7.93640689]
[1730978829111,7.93640689,187.73,187.66,7.93640689]
[1730978833833,7.93640689,187.7,187.64,23.776884]
[1730978834216,7.93640689,187.7,187.64,31.71329089]
[1730978834813,7.93640689,187.71,187.65,7.93640689]
[1730978836309,1.78534523,187.77,187.65,7.93640689]
[1730978836521,7.93640689,187.72,187.66,7.93640689]
[1730978837928,7.93640689,187.72,187.65,7.93640689]
[1730978838325,7.93640689,187.72,187.66,23.776884]
[1730978839635,7.93640689,187.71,187.66,23.776884]
[1730978839928,7.93640689,187.71,187.65,23.776884]
[1730978840336,7.93640689,187.71,187.64,31.71329089]
[1730978841528,7.93640689,187.71,187.64,23.776884]
[1730978841721,7.93640689,187.7,187.64,31.71329089]
[1730978842108,7.93640689,187.71,187.64,31.71329089]
[1730978846235,7.93640689,187.72,187.66,7.93640689]
[1730978846816,7.93640689,187.71,187.65,7.93640689]
[1730978847217,7.93640689,187.71,187.66,23.776884]
[1730978849331,7.93640689,187.72,187.66,31.71329089]
[1730978851028,7.93640689,187.73,187.66,31.71329089]
[1730978854446,7.93640689,187.7,187.66,23.776884]
[1730978854616,7.93640689,187.7,187.65,23.776884]
[1730978854939,7.93640689,187.71,187.65,7.93640689]
[1730978855152,7.93640689,187.72,187.66,23.776884]
[1730978855449,7.93640689,187.71,187.66,23.776884]
[1730978856434,7.93640689,187.72,187.66,23.776884]
[1730978856942,7.93640689,187.73,187.66,31.71329089]
[1730978859022,7.93640689,187.73,187.66,23.776884]
[1730978859231,7.93640689,187.72,187.65,7.93640689]
[1730978860017,158.52549,187.77,187.66,7.93640689]
[1730978860233,3.99204548,187.76,187.67,7.93640689]
[1730978860522,7.93640689,187.75,187.68,7.93640689]
[1730978861336,7.93640689,187.74,187.68,23.776884]
[1730978864226,7.93640689,187.74,187.68,31.71329089]
[1730978865729,0.12549,187.77,187.68,31.71329089]
[1730978866142,7.93640689,187.74,187.68,31.71329089]
[1730978867151,7.93640689,187.75,187.68,31.71329089]
[1730978867324,7.93640689,187.75,187.68,54.02479089]
[1730978867526,158.4,187.83,187.71,7.93640689]
[1730978867747,7.93640689,187.78,187.71,7.93640689]
[1730978867952,5.50159018,187.83,187.72,7.93640689]
[1730978868248,7.93640689,187.79,187.73,31.71329089]
[1730978868629,7.93640689,187.78,187.73,23.776884]
[1730978869751,7.93640689,187.76,187.7,31.71329089]
[1730978869920,7.93640689,187.75,187.69,23.776884]
[1730978870127,7.93640689,187.71,187.68,22.3115]
[1730978870426,7.93640689,187.7,187.63,7.93640689]
[1730978870626,7.93640689,187.71,187.64,7.93640689]
[1730978870837,7.93640689,187.71,187.65,7.93640689]
[1730978871049,7.93640689,187.7,187.64,7.93640689]
[1730978871433,7.93640689,187.7,187.65,23.776884]
[1730978871829,0.12549,187.76,187.67,23.776884]
[1730978872134,7.93640689,187.73,187.67,31.71329089]
[1730978872354,7.93640689,187.74,187.67,54.77059089]
[1730978873948,7.93640689,187.73,187.67,54.77059089]
[1730978879134,7.93640689,187.72,187.67,46.834184]
[1730978881264,7.93640689,187.73,187.67,46.834184]
[1730978882334,7.93640689,187.72,187.67,46.834184]
[1730978885553,7.93640689,187.71,187.67,46.834184]
[1730978886438,7.93640689,187.71,187.67,23.0573]
[1730978887053,0.1,187.77,187.67,23.0573]
[1730978887253,7.93640689,187.71,187.67,23.0573]
[1730978893347,7.93640689,187.72,187.67,23.0573]
[1730978893765,7.93640689,187.71,187.67,23.0573]
[1730978896468,0.12549,187.76,187.67,23.0573]
[1730978896773,7.93640689,187.72,187.67,23.0573]
[1730978898069,0.12549,187.76,187.67,23.0573]
[1730978898373,7.93640689,187.74,187.67,30.99370689]
[1730978899879,0.12549,187.78,187.67,30.99370689]
[1730978900052,7.93640689,187.73,187.67,30.99370689]
[1730978900874,7.93640689,187.74,187.67,30.99370689]
[1730978903781,7.93640689,187.74,187.68,23.776884]
[1730978903973,7.93640689,187.74,187.68,31.71329089]
[1730978908159,7.93640689,187.74,187.68,23.776884]
[1730978908556,7.93640689,187.74,187.68,31.71329089]
[1730978909186,7.93640689,187.74,187.7,1000.0]
[1730978909685,7.93640689,187.76,187.7,1007.93640689]
[1730978910177,7.93640689,187.77,187.71,7.93640689]
[1730978910367,7.93640689,187.77,187.7,1007.93640689]
[1730978910787,7.93640689,187.76,187.7,1007.93640689]
[1730978911880,7.93640689,187.74,187.7,1000.0]
[1730978914773,0.12549,187.79,187.7,1000.0]
[1730978914990,7.93640689,187.75,187.7,1000.0]
[1730978917493,7.93640689,187.74,187.7,1000.0]
[1730978917786,7.93640689,187.73,187.7,1000.0]
[1730978917983,7.93640689,187.72,187.7,1000.0]
[1730978919282,182.502374,187.79,187.7,1000.0]
[1730978919588,7.93640689,187.71,187.7,1000.0]
[1730978928974,1.60861205,187.76,187.7,1000.0]
[1730978929166,7.93640689,187.73,187.7,1000.0]
[1730978932963,7.93640689,187.74,187.7,1000.0]
[1730978933163,254.4,187.78,187.7,1000.0]
[1730978933367,7.93640689,187.75,187.7,1000.0]
[1730978933567,7.93640689,187.74,187.7,1000.0]
[1730978941405,7.93640689,187.75,187.7,1000.0]
[1730978942105,7.93640689,187.74,187.7,1000.0]
[1730978945601,7.93640689,187.72,187.7,1000.0]
[1730978947109,7.93640689,187.71,187.7,1000.0]
[1730978965408,8.06189689,187.71,187.7,1000.0]
[1730978965610,39.80752445,187.71,187.7,1000.0]
[1730978978735,8.06189689,187.71,187.7,1000.0]
[1730978981632,0.12549,187.71,187.7,1000.0]
[1730978981810,8.06189689,187.71,187.7,1000.0]
[1730978982711,24.102374,187.74,187.71,10.93810311]
[1730978982911,7.93640689,187.72,187.71,10.93810311]
[1730978985837,0.12549,187.72,187.71,10.93810311]
[1730978986043,8.06189689,187.72,187.71,10.93810311]
[1730978991744,0.12549,187.72,187.71,10.93810311]
[1730978991943,8.06189689,187.72,187.71,10.93810311]
[1730978996440,0.12549,187.72,187.71,10.93810311]
[1730978996629,8.06189689,187.72,187.71,10.93810311]
[1730979002647,158.52549,187.71,187.7,1000.0]
[1730979002834,198.20752445,187.71,187.7,1000.0]
[1730979004038,198.20752445,187.71,187.7,936.72232741]
[1730979004429,198.30752445,187.71,187.7,875.33714637]
[1730979004627,63.78440845,187.71,187.7,850.06614658]
[1730979004932,63.78440845,187.71,187.7,819.61314658]
[1730979006050,63.78440845,187.71,187.7,799.45314658]
[1730979006349,63.78440845,187.71,187.7,692.90302134]
[1730979006535,63.78440845,187.71,187.7,593.64302134]
[1730979006847,63.78440845,187.71,187.7,530.36534875]
[1730979009625,63.78440845,187.71,187.7,467.08767616]
[1730979009824,63.78440845,187.71,187.7,458.29667616]
[1730979010125,63.78440845,187.71,187.7,455.91367616]
[1730979010346,63.78440845,187.71,187.7,453.35640391]
[1730979011234,83.78440845,187.71,187.7,440.18740391]
[1730979011751,83.78440845,187.71,187.7,425.72840391]
[1730979012249,83.78440845,187.71,187.7,400.18140392]
[1730979012641,83.78440845,187.71,187.7,385.73040392]
[1730979012831,83.78440845,187.71,187.7,322.45273133]
[1730979013731,83.78440845,187.71,187.7,289.64573133]
[1730979013933,83.78440845,187.71,187.7,257.27897035]
[1730979014150,83.78440845,187.71,187.7,150.71180618]
[1730979014453,83.78440845,187.71,187.7,44.14464201]
[1730979014848,0.12549,187.68,187.6,21.3018]
[1730979015063,7.93640689,187.61,187.6,21.3018]
[1730979015350,7.93640689,187.62,187.6,21.3018]
[1730979015732,7.93640689,187.61,187.6,21.3018]
[1730979017647,0.12549,187.6,187.56,22.2216]
[1730979017964,7.93640689,187.57,187.56,22.2216]
[1730979024958,8.06189689,187.57,187.56,22.2216]
[1730979026951,0.12549,187.57,187.56,22.2216]
[1730979027153,8.06189689,187.57,187.56,22.2216]
[1730979027975,0.12549,187.56,187.48,22.3978]
[1730979028160,7.93640689,187.54,187.48,30.33420689]
[1730979028660,7.93640689,187.54,187.49,7.93640689]
[1730979028832,7.93640689,187.54,187.48,22.3978]
[1730979029039,7.93640689,187.53,187.48,22.3978]
[1730979029353,7.93640689,187.52,187.48,22.3978]
[1730979029537,7.93640689,187.51,187.48,22.3978]
[1730979029943,7.93640689,187.52,187.48,22.3978]
[1730979030258,7.93640689,187.54,187.48,22.3978]
[1730979030433,7.93640689,187.54,187.48,30.33420689]
[1730979030633,0.12549,187.56,187.48,30.33420689]
[1730979030832,7.93640689,187.53,187.48,30.33420689]
[1730979031438,0.12549,187.56,187.48,30.33420689]
[1730979031638,185.27203068,187.59,187.49,7.93640689]
[1730979031847,7.93640689,187.56,187.51,21.3405]
[1730979032052,7.93640689,187.57,187.51,29.27690689]
[1730979033159,7.93640689,187.55,187.51,21.3405]
[1730979033652,7.93640689,187.53,187.51,21.3405]
[1730979036744,7.93640689,187.52,187.51,21.3405]
[1730979042990,8.06189689,187.52,187.51,21.3405]
[1730979043152,0.12549,187.51,187.45,22.5131]
[1730979043476,7.93640689,187.49,187.45,22.5131]
[1730979044167,7.93640689,187.47,187.45,22.5131]
[1730979044357,7.93640689,187.48,187.45,22.5131]
[1730979046259,7.93640689,187.47,187.45,22.5131]
[1730979046653,7.93640689,187.48,187.45,22.5131]
[1730979047976,0.12549,187.52,187.45,22.5131]
[1730979048175,7.93640689,187.49,187.45,22.5131]
[1730979051777,7.93640689,187.48,187.45,22.5131]
[1730979051978,7.93640689,187.49,187.45,22.5131]
[1730979052568,7.93640689,187.48,187.45,22.5131]
[1730979060277,7.93640689,187.46,187.38,21.6113]
[1730979060486,7.93640689,187.44,187.38,29.54770689]
[1730979060664,7.93640689,187.45,187.39,7.93640689]
[1730979061066,0.12549,187.49,187.42,22.301]
[1730979061265,7.93640689,187.46,187.42,22.301]
[1730979062682,0.12549,187.52,187.42,22.301]
[1730979062868,7.93640689,187.47,187.42,22.301]
[1730979063068,0.12549,187.52,187.42,22.301]
[1730979063379,7.93640689,187.47,187.42,22.301]
[1730979064486,7.93640689,187.48,187.42,30.23740689]
[1730979065063,7.93640689,187.48,187.42,22.301]
[1730979065259,7.93640689,187.46,187.42,22.301]
[1730979065605,7.93640689,187.47,187.42,22.301]
[1730979067671,7.93640689,187.43,187.35,21.3192]
[1730979067875,7.93640689,187.39,187.35,21.3192]
[1730979068388,7.93640689,187.38,187.35,21.3192]
[1730979068904,7.93640689,187.39,187.35,21.3192]
[1730979069768,7.93640689,187.4,187.35,21.3192]
[1730979070183,0.12549,187.46,187.35,21.3192]
[1730979070377,7.93640689,187.4,187.35,21.3192]
[1730979072600,7.93640689,187.39,187.35,21.3192]
[1730979074793,24.102374,187.46,187.35,21.3192]
[1730979075000,7.93640689,187.4,187.35,21.3192]
[1730979075371,158.4,187.45,187.29,23.776884]
[1730979075372,7.93640689,187.37,187.29,23.776884]
[1730979075573,7.93640689,187.37,187.31,23.776884]
[1730979075775,0.12549,187.41,187.31,31.71329089]
[1730979075991,7.93640689,187.35,187.28,22.4736]
[1730979076196,7.93640689,187.35,187.28,30.41000689]
[1730979076381,7.93640689,187.33,187.28,22.4736]
[1730979076773,7.93640689,187.34,187.28,30.41000689]
[1730979077684,7.93640689,187.33,187.26,23.776884]
[1730979077889,7.93640689,187.33,187.27,7.93640689]
[1730979078098,7.93640689,187.33,187.26,7.93640689]
[1730979078299,29.28941689,187.33,187.26,7.93640689]
[1730979078589,7.93640689,187.32,187.25,22.5787]
[1730979078788,7.93640689,187.32,187.26,7.93640689]
[1730979080997,29.28941689,187.33,187.26,7.93640689]
[1730979082194,7.93640689,187.32,187.26,7.93640689]
[1730979085387,7.93640689,187.31,187.25,30.51510689]
[1730979086775,7.93640689,187.3,187.25,22.5787]
[1730979086979,7.93640689,187.29,187.24,0.5723908]
[1730979087283,7.93640689,187.27,187.24,0.5723908]
[1730979088695,7.93640689,187.28,187.24,0.5723908]
[1730979090377,7.93640689,187.29,187.24,0.5723908]
[1730979090584,7.93640689,187.29,187.24,8.50879769]
[1730979093502,7.93640689,187.29,187.24,0.5723908]
[1730979094007,7.93640689,187.28,187.24,0.5723908]
[1730979096293,7.93640689,187.29,187.24,0.5723908]
[1730979096693,7.93640689,187.28,187.24,0.5723908]
[1730979097495,7.93640689,187.29,187.24,0.5723908]
[1730979099817,8.06189689,187.25,187.24,0.5723908]
[1730979104605,29.42650589,187.25,187.24,0.5723908]
[1730979108916,21.490099,187.25,187.24,0.5723908]
[1730979109294,29.42650589,187.25,187.24,0.5723908]
[1730979114803,29.42650589,187.25,187.24,0.5723908]
[1730979118724,0.12549,187.24,187.15,21.7795]
[1730979118895,7.93640689,187.2,187.15,21.7795]
[1730979119217,7.93640689,187.21,187.15,21.7795]
[1730979119600,0.12549,187.24,187.15,21.7795]
[1730979119601,7.93640689,187.2,187.15,21.7795]
[1730979121015,7.93640689,187.19,187.15,21.7795]
[1730979124027,0.12549,187.24,187.15,29.71590689]